[Event "4NCL Div 1 2024-25"]
[Site "England"]
[Date "2025.01.26"]
[Round "4.19"]
[White "O`Gorman, Tom"]
[Black "Hebden, Mark L"]
[Result "1/2-1/2"]
[Annotator "TA"]
[ECO "E94"]
[WhiteElo "2380"]
[BlackElo "2372"]
[PlyCount "149"]
[EventDate "2024.11.23"]
[EventType "team-tourn"]
[EventCountry "ENG"]
[SourceTitle "playchess.com"]
[Source "ChessBase"]
[SourceQuality "1"]
[TimeControl "40/6000+30:3000+30"]

{[%evp 16,149,56,22,18,22,23,22,41,28,17,15,37,25,35,21,14,20,20,25,25,25,34,25,33,25,21,12,18,22,12,-31,17,29,145,143,140,116,122,127,200,151,135,149,200,203,302,233,366,339,328,323,439,168,139,181,172,169,171,141,141,66,70,72,58,47,51,87,64,64,75,38,38,37,37,27,29,28,25,16,23,12,20,20,45,45,46,46,60,60,66,66,64,64,79,39,39,39,39,39,66,66,73,73,78,77,85,39,54,39,57,58,59,0,0,0,65,8,8,8,8,8,8,8,8,0,0,0,0,0,0,0,0,0,0,0]} 1. d4 {[%emt 0:10:08]} Nf6 {[%emt 0:10:17]} 2. c4 {[%emt 0:00:08]} g6 {[%emt 0:00:19]} 3. Nc3 {[%emt 0:00:07]} Bg7 {[%emt 0:00:05]} 4. e4 {[%emt 0:00:12]} d6 {[%emt 0:00:17]} 5. Nf3 {[%emt 0:00:09]} O-O {[%emt 0:00:21]} 6. Be2 {[%emt 0:00:13]} e5 {[%emt 0:00:53]} 7. O-O {[%emt 0:00:13]} Nbd7 {[%emt 0:01:52]} 8. Be3 {[%emt 0:00:34]} Qe7 $1 {[%emt 0:00:45][%mdl 4] is recently more successful than 8...c6.} 9. dxe5 {[%emt 0:01:45]} dxe5 {[%emt 0:00:16] E94: King's Indian: Classical: 6 Be2 e5 7 0-0: Various Black 7th moves.} 10. Nd5 {[%emt 0:00:49]} Qd8 {[%emt 0:00:11]} 11. Qc2 {[%emt 0:00:56]} Nh5 {[%emt 0:04:04]} 12. g3 {[%emt 0:00:12]} c6 {[%emt 0:00:32]} 13. Nc3 {[%emt 0:00:23]} Nhf6 {[%emt 0:01:53]} 14. Rad1 {[%emt 0:01:40]} Qe7 {[%emt 0:01:08]} 15. a3 {[%emt 0:03:28]} Ng4 {[%emt 0:06:56]} 16. Bg5 {[%emt 0:01:32]} f6 {[%emt 0:02:30]} 17. Bc1 {[%emt 0:00:21]} Nc5 {[%emt 0:09:05]} 18. b4 {[%emt 0:31:00]} Ne6 {[%emt 0:00:16][%cal Oe6d4]} 19. c5 {[%emt 0:01:42]} Nh6 {[%emt 0:02:20]} 20. Na4 $146 {[%emt 0:04:52]} (20. Rfe1 Nc7 21. Na4 Nf7 22. Nb2 Bh6 23. Bxh6 Nxh6 24. Nc4 Bg4 25. Nfd2 Bxe2 26. Rxe2 {½-½ Degtyaryov,S (2272)-Rice,P (2281) MT-Esko sf03 email 2017 [2]}) 20... Nf7 {[%emt 0:01:37]} 21. h4 {[%emt 0:10:21]} f5 {[%emt 0:03:07]} 22. exf5 {[%emt 0:21:24]} gxf5 {[%emt 0:00:26]} 23. Bc4 {[%emt 0:00:30]} Kh8 {[%emt 0:06:42]} (23... e4 $15 {is superior.}) 24. Nc3 $36 {[%emt 0:05:13][%cal Ba4c3,Bc3e2,Be2f4,Bf4d3][%mdl 2080] White has the initiative.} Nd4 {[%emt 0:07:29]} (24... Qf6 $11 {remains equal.}) 25. Nxd4 $16 {[%emt 0:01:00]} exd4 {[%emt 0:00:08]} 26. Ne2 {[%emt 0:00:13][%cal Of1e1] White is much more active.} Ne5 {[%emt 0:00:45]} 27. Nf4 $1 {[%emt 0:03:59]} (27. Rxd4 $2 Nf3+ 28. Kg2 Nxd4 $19) 27... a5 {[%emt 0:03:56]} (27... b6 $16) 28. Kg2 {[%emt 0:01:39]} (28. Rxd4 $2 Nf3+ 29. Kg2 Nxd4 $19) 28... axb4 {[%emt 0:01:21]} 29. axb4 {[%emt 0:00:02]} (29. Rxd4 Qxc5 30. Bb2 bxa3 $17) 29... b5 {[%emt 0:01:41] [#]} (29... Nxc4 $16 30. Qxc4 b5) 30. Bb3 $1 $18 {[%emt 0:02:17][%cal Of1e1]} (30. cxb6 Qxb4 31. Bb3 (31. Rxd4 Qa4 $17) 31... Ba6 $11) 30... d3 {[%emt 0:00:31]} (30... Nc4 $142 31. Rfe1 Qf7) 31. Nxd3 {[%emt 0:00:37]} f4 {[%emt 0:05:37]} (31... Nxd3 {was worth a try.} 32. Qxd3 Qe4+ 33. Qxe4 fxe4) 32. Nxf4 {[%emt 0:01:48]} (32. Bxf4 Ng6 33. Rfe1 Qf6 $18) 32... Bf5 {[%emt 0:02:03]} 33. Qe2 {[%emt 0:00:23]} Rae8 {[%emt 0:00:17]} 34. Bc2 $2 {[%emt 0:02:38]} (34. Rfe1) 34... Bg4 {[%emt 0:05:49]} 35. f3 {[%emt 0:00:14]} Nxf3 {[%emt 0:01:37]} 36. Qxe7 {[%emt 0:00:56]} Rxe7 {[%emt 0:00:06]} 37. Rxf3 {[%emt 0:00:10]} Re2+ {[%emt 0:00:09]} 38. Rf2 {[%emt 0:01:05]} ({White should play} 38. Nxe2 $16 {Rxf8+ would kill now.} Bxf3+ 39. Kh3 Bxe2 40. Rd6) 38... Rxc2 $1 $14 {[%emt 0:02:00]} 39. Rxc2 {[%emt 0:00:16]} Bxd1 {[%emt 0:00:09] A strong pair of Bishops.} 40. Rd2 {[%emt 0:01:15]} Bg4 {[%emt 0:00:27]} 41. Bb2 {[%emt 0:53:56]} Bxb2 {[%emt 0:50:16]} 42. Rxb2 $16 {[%emt 0:00:06][%mdl 4096] Endgame KRB-KRN. White is a pawn up.} Re8 {[%emt 0:00:13]} 43. Rd2 {[%emt 0:00:00]} Re4 {[%emt 0:00:00]} 44. Rd6 {[%emt 0:00:00]} Rxb4 {[%emt 0:00:00]} 45. Rxc6 {[%emt 0:00:00]} Rb2+ {[%emt 0:00:00]} 46. Kf1 {[%emt 0:00:00]} Rc2 {[%emt 0:00:00]} 47. h5 {[%emt 0:00:00] Threatening h6.} b4 {[%emt 0:00:00] White must now prevent ...b3.} 48. h6 {[%emt 0:00:00]} b3 {[%emt 0:00:00]} 49. Rb6 {[%emt 0:00:00]} Rxc5 {[%emt 0:00:00]} 50. Rxb3 {[%emt 0:00:00]} Kg8 {[%emt 0:00:00]} 51. Rb7 {[%emt 0:00:00]} Bf5 {[%emt 0:00:00] [#]} 52. g4 $1 {[%emt 0:00:00]} Kf8 {[%emt 0:00:00]} (52... Bxg4 53. Rg7+) 53. g5 {[%emt 0:02:53]} Rc4 {[%emt 0:00:00]} 54. Nh5 {[%emt 0:00:22]} Re4 {[%emt 0:00:00]} 55. Nf6 {[%emt 0:02:47][%csl LRe4,LRh7]} Re7 {[%emt 0:00:00]} 56. Rb8+ {[%emt 0:00:12]} Kf7 {[%emt 0:00:00]} 57. Kf2 {[%emt 0:00:23]} Bg6 {[%emt 0:01:37]} 58. Rg8 {[%emt 0:00:45]} Bf5 {[%emt 0:08:44]} 59. Kg3 {[%emt 0:00:21]} Ke6 {[%emt 0:01:24]} 60. Kf4 {[%emt 0:00:18]} Bc2 {[%emt 0:00:55]} 61. Rg7 {[%emt 0:00:45]} (61. Rc8 $16 Bg6 62. Rc6+ Kf7 63. Ng4 Re4+ 64. Kg3) 61... Kd6 {[%emt 0:02:31]} 62. Kg4 {[%emt 0:00:41][%cal Og7h7]} Bd1+ {[%emt 0:00:21]} 63. Kh4 {[%emt 0:00:08]} Bc2 $1 {[%emt 0:00:05]} 64. Kh5 {[%emt 0:01:36][%cal Og7h7]} Bd1+ {[%emt 0:00:09]} 65. Kh4 {[%emt 0:00:02]} Bc2 $1 {[%emt 0:00:06] [#]} 66. Rxh7 {[%emt 0:01:11]} Bxh7 $11 {[%emt 0:06:27] The position is equal.} 67. Nxh7 $14 {[%emt 0:00:04] KR-KN} Ke6 $1 {[%emt 0:03:06]} (67... Rxh7 $2 {loses.} 68. Kh5 Rf7 69. g6 $18 (69. Kg6 Ke6 $11)) 68. g6 {[%emt 0:00:46] aiming for Kg5.} Ra7 {[%emt 0:02:44]} 69. Ng5+ {[%emt 0:00:39]} (69. g7 {simplifies} Rxg7 70. hxg7 Kf7 71. Ng5+) 69... Kf6 {[%emt 0:02:20]} 70. h7 {[%emt 0:00:11]} Kg7 {[%emt 0:00:50]} 71. Kh5 {[%emt 0:00:54]} Ra5 {[%emt 0:00:22]} 72. Kg4 {[%emt 0:00:25]} Ra4+ {[%emt 0:01:29]} 73. Kh5 {[%emt 0:00:22]} Ra5 {[%emt 0:00:06]} 74. Kg4 {[%emt 0:00:27]} Ra4+ {[%emt 0:00:16]} 75. Kh5 {[%emt 0:00:06] Black escapes into a draw.   Weighted Error Value: White=0.19 (very precise) /Black=0.22 (precise)   Mistake:       	White=4     	Black=6      Inaccurate:     	White=3     	Black=2      OK:         	White=28    	Black=27     Best:        	White=2     	Black=6      Strong:       	White=1     	Black=4      Brilliant:      	White=1     	---} 1/2-1/2

[Event "4NCL Div 1 2024-25"]
[Site "England"]
[Date "2025.01.26"]
[Round "4.20"]
[White "Williams, Simon K"]
[Black "Price, Gwilym"]
[Result "1-0"]
[Annotator "TA"]
[ECO "B21"]
[WhiteElo "2442"]
[BlackElo "2223"]
[PlyCount "105"]
[EventDate "2024.11.23"]
[EventType "team-tourn"]
[EventCountry "ENG"]
[SourceTitle "playchess.com"]
[Source "ChessBase"]
[SourceQuality "1"]
[TimeControl "40/6000+30:3000+30"]

{[%evp 9,105,-12,0,0,7,-3,34,31,30,30,38,21,33,16,60,55,133,70,91,79,118,127,146,138,146,134,140,155,152,129,202,127,120,114,113,115,114,132,141,139,133,130,132,129,137,131,151,45,35,46,43,38,53,34,41,26,22,14,16,26,16,19,70,69,69,71,71,72,59,53,79,79,83,83,83,84,82,81,89,81,81,93,86,79,89,83,79,74,29965,29964,29969,29969,29970,29970,29965,29962,29985,29986]} 1. f4 {[%emt 0:10:27]} c5 {[%emt 0:10:05]} 2. Nf3 {[%emt 0:00:10]} g6 {[%emt 0:00:13]} 3. e4 {[%emt 0:03:31][%cal Be2e4,Be4e5][%mdl 32]} Bg7 {[%emt 0:00:16]} 4. Be2 {[%emt 0:00:47]} Nc6 {[%emt 0:00:07]} 5. O-O {[%emt 0:00:12]} e6 {[%emt 0:05:39]} 6. d3 {[%emt 0:01:22][%cal Bd2d3,Bd3d4][%mdl 32] B21: Sicilian: 2 f4 and Morra Gambit.} Nge7 {[%emt 0:00:20]} 7. c3 {[%emt 0:01:23]} f5 {[%emt 0:07:47]} 8. e5 {[%emt 0:02:26] White is slightly better.} d6 $146 {[%emt 0:00:28]} (8... b6 9. d4 cxd4 10. cxd4 Nd5 11. Nc3 Nce7 12. Ng5 Bb7 13. Bf3 O-O 14. Nxd5 Bxd5 15. Bxd5 Nxd5 {0-1 Tietz,B (1579)-Benicke,B (1701) GER-ch Net blitz qual4 2021 (7)}) 9. d4 {[%emt 0:01:31]} O-O {[%emt 0:03:38]} 10. Na3 {[%emt 0:00:26][%cal Bb1a3,Ba3c4,Bc4d6][%mdl 32]} Nd5 {[%emt 0:19:55]} 11. Nc4 {[%emt 0:14:38]} dxe5 {[%emt 0:00:33]} 12. dxe5 {[%emt 0:00:10]} Nc7 {[%emt 0:02:18]} (12... Qc7 $14) 13. a4 {[%emt 0:00:56]} (13. Nd6 $16) 13... b6 {[%emt 0:02:17]} 14. Nd6 {[%emt 0:01:13]} Ba6 {[%emt 0:08:28]} 15. Bb5 {[%emt 0:04:29]} Bxb5 {[%emt 0:00:48]} 16. axb5 {[%emt 0:00:05]} (16. Nxb5 $6 Nd5 $14) 16... Ne7 {[%emt 0:00:40][%csl Od6] Strong Square White (d6)} 17. Qe2 {[%emt 0:00:08]} Nc8 {[%emt 0:07:35]} 18. Rd1 {[%emt 0:00:16][%cal Od6f5]} Qe7 {[%emt 0:00:20]} 19. Be3 {[%emt 0:03:12] White is much more active. The black rooks are passive.} h6 {[%emt 0:15:07] White has space advantage and is better} (19... Nd5 $16 {keeps fighting.}) 20. Qd2 {[%emt 0:03:43]} Nd5 {[%emt 0:02:42]} 21. Bf2 {[%emt 0:12:39]} Nxd6 {[%emt 0:02:59]} 22. exd6 {[%emt 0:00:04]} Qxd6 {[%emt 0:00:16]} 23. c4 {[%emt 0:00:05]} Qxf4 {[%emt 0:00:05]} 24. cxd5 {[%emt 0:00:02]} Qxd2 {[%emt 0:00:07]} 25. Rxd2 {[%emt 0:00:05]} ({Don't take} 25. Nxd2 exd5 26. Ra2 Rfd8 $16) 25... exd5 {[%emt 0:00:06]} 26. Rxd5 {[%emt 0:00:13]} Bxb2 {[%emt 0:00:07]} 27. Ra2 {[%emt 0:01:05]} Bf6 {[%emt 0:00:49]} 28. Nd2 {[%emt 0:06:11]} (28. Bg3 $16) 28... Rfd8 $14 {[%emt 0:01:55]} 29. Rxd8+ {[%emt 0:00:05]} Rxd8 {[%emt 0:00:06]} 30. Kf1 {[%emt 0:00:04][%cal Of1e2]} Be5 {[%emt 0:04:49]} 31. Nc4 {[%emt 0:01:42]} Bb8 {[%emt 0:01:20]} 32. Ke2 {[%emt 0:00:12]} Kf7 {[%emt 0:01:02]} 33. Ra3 {[%emt 0:02:57]} g5 {[%emt 0:01:32]} 34. h3 {[%emt 0:00:41]} h5 {[%emt 0:01:33]} 35. Re3 {[%emt 0:06:20]} Rd4 {[%emt 0:06:40]} ({Black should try} 35... Rd5 $11) 36. Ne5+ {[%emt 0:01:43]} Bxe5 {[%emt 0:00:09]} 37. Rxe5 {[%emt 0:00:03][%mdl 4096] Endgame KRB-KR} Rb4 {[%emt 0:00:07]} 38. Rxf5+ {[%emt 0:00:05]} Kg6 {[%emt 0:00:06]} 39. Rd5 {[%emt 0:00:04]} Rb2+ {[%emt 0:06:09]} 40. Kf3 {[%emt 0:00:30]} g4+ {[%emt 0:00:04]} 41. hxg4 {[%emt 0:50:13]} hxg4+ {[%emt 0:50:05]} 42. Kg3 $1 {[%emt 0:00:37]} Rxb5 {[%emt 0:01:02]} 43. Kxg4 {[%emt 0:00:06]} Rb4+ {[%emt 0:00:15]} 44. Kf3 {[%emt 0:00:12] [#]} a5 {[%emt 0:00:00][%cal Ba7a5,Ba5a4,Ba4a3,Ba3a2][%mdl 32]} 45. g4 {[%emt 0:00:00][%cal Bg2g4,Bg4g5,Bg5g6][%mdl 32] Strongly threatening Rd6+.} a4 {[%emt 0:00:00]} 46. Rd6+ {[%emt 0:00:00]} Kf7 {[%emt 0:00:00]} 47. g5 {[%emt 0:00:00]} a3 {[%emt 0:00:00]} 48. g6+ {[%emt 0:00:00]} Kg8 $2 {[%emt 0:00:00][%mdl 8192] [#] This costs Black the game.} (48... Ke7 $16) 49. Bg3 {[%emt 0:00:00] White mates.} Rb3+ {[%emt 0:00:00]} 50. Kg4 {[%emt 0:00:00]} Re3 {[%emt 0:00:00]} 51. Rxb6 {[%emt 0:00:00]} a2 {[%emt 0:00:00]} 52. Ra6 {[%emt 0:00:00]} Re6 {[%emt 0:00:00]} 53. Rxe6 {[%emt 0:00:00] Weighted Error Value: White=0.11 (very precise) /Black=0.26 (precise)   Loses game:     	---       	Black=1      Mistake:       	White=2     	Black=3      Inaccurate:     	White=1     	Black=4      OK:         	White=19    	Black=18     Best:        	White=4     	Black=6      Strong:       	White=1     	---} 1-0

[Event "4NCL Div 1 2024-25"]
[Site "England"]
[Date "2025.01.26"]
[Round "4.21"]
[White "Dong, Bao Nghia"]
[Black "Pert, Max"]
[Result "0-1"]
[Annotator "TA"]
[ECO "D31"]
[WhiteElo "2247"]
[BlackElo "2076"]
[PlyCount "58"]
[EventDate "2024.11.23"]
[EventType "team-tourn"]
[EventCountry "ENG"]
[SourceTitle "playchess.com"]
[Source "ChessBase"]
[SourceQuality "1"]
[TimeControl "40/6000+30:3000+30"]

{[%evp 9,58,3,32,-33,-31,-36,-29,-26,-35,-73,-12,-39,-49,-139,-130,-165,-162,-171,-122,-179,-175,-223,-218,-311,-300,-290,-289,-282,-292,-261,-245,-414,-270,-382,-375,-1058,-1147,-1132,-1103,-1942,-1923,-1914,-1752,-2117,-2052,-29994,-29995,-29995,-29996,-29996,-1591]} 1. d4 {[%emt 0:11:27]} d5 {[%emt 0:10:27]} 2. c4 {[%emt 0:00:08]} e6 {[%emt 0:00:27]} 3. Nc3 {[%emt 0:00:06]} a6 {[%emt 0:01:21]} 4. e3 {[%emt 0:00:15]} Nf6 {[%emt 0:01:09]} 5. Nf3 {[%emt 0:00:09]} Be7 {[%emt 0:01:33] [#]} 6. g4 $146 {[%emt 0:01:18] D31: Queen's Gambit Declined: Semi-Slav without ...Nf6 (+ Marshall Gambit and Noteboom) and Exchange Variation lines without ...Nf6.} (6. cxd5 exd5 7. Bd3 O-O 8. O-O c5 9. dxc5 Bxc5 10. h3 Nc6 11. Ne2 Bd6 12. b3 Ne5 13. Nxe5 Bxe5 14. Rb1 Be6 15. Bb2 Bxb2 16. Rxb2 Rc8 17. Nd4 Qd6 18. Qb1 Rc7 {1-0 Nakamura,H (2736)-Sjugirov,S (2675) Speed Chess Super Swiss KO blitz 2020 (1.3)}) 6... dxc4 $15 {[%emt 0:08:07]} (6... Nxg4 $6 7. Rg1 $14) 7. Ne5 {[%emt 0:03:21]} c5 {[%emt 0:09:26]} 8. Bg2 {[%emt 0:11:06] Black has an edge.} O-O {[%emt 0:11:41]} 9. h4 {[%emt 0:05:33]} Qc7 {[%emt 0:08:51]} (9... cxd4 $17 10. Qxd4 Nfd7 11. Nxc4 Nc6 12. Bxc6 bxc6) 10. g5 $11 {[%emt 0:10:18]} Nfd7 {[%emt 0:02:13]} 11. Ng4 {[%emt 0:01:19]} (11. Nxc4 $15 cxd4 12. Qxd4) 11... Nc6 $17 {[%emt 0:02:54]} 12. Bxc6 {[%emt 0:02:07]} Qxc6 {[%emt 0:02:05]} 13. d5 {[%emt 0:00:05]} exd5 {[%emt 0:02:30]} ({Better is} 13... Qd6 $19 {And now ...b5 would win.} 14. e4 b5) 14. Nxd5 {[%emt 0:00:10]} (14. Qxd5 $17 Qxd5 15. Nxd5) 14... Bd8 {[%emt 0:01:20] [#]} 15. Rg1 {[%emt 0:02:09]} (15. e4 $142) 15... Re8 $19 {[%emt 0:07:06]} 16. Ngf6+ {[%emt 0:18:58]} (16. f3 $142) 16... Bxf6 {[%emt 0:12:41]} (16... gxf6 17. gxf6+ Kh8 18. Qg4 Bxf6 (18... Qxd5 19. Qg7#) (18... Ba5+ 19. Kf1) 19. Ne7 $16) 17. gxf6 {[%emt 0:00:12]} Nxf6 {[%emt 0:00:32]} 18. Nxf6+ {[%emt 0:00:54]} Qxf6 {[%emt 0:00:26]} 19. Bd2 {[%emt 0:00:04]} Qxb2 {[%emt 0:06:21]} 20. Rb1 $2 {[%emt 0:00:54]} (20. Rc1 {is a better defense.} Rd8 (20... Qxa2 21. Bc3 $15) 21. Qc2 Qxc2 22. Rxc2) 20... Qxa2 {[%emt 0:03:38]} 21. Rb6 {[%emt 0:09:37]} (21. Bc3 $142 g6 22. h5) 21... Bf5 {[%emt 0:04:50]} 22. Rxg7+ $2 {[%emt 0:23:17]} (22. Bc3 g6 23. Qe2) 22... Kxg7 {[%emt 0:00:54]} 23. Bc3+ {[%emt 0:00:02]} Kg8 {[%emt 0:01:46]} 24. Qh5 {[%emt 0:03:53]} Qc2 {[%emt 0:01:00]} ({Not} 24... Bg6 25. Rxg6+ fxg6 26. Qd5+ Kf8 27. Qf3+ Kg8 (27... Ke7 28. Qxb7+ Ke6 29. Qc6+ Ke7 30. Qc7+ Ke6 31. Qc6+ Ke7 32. Qc7+ Ke6 33. Qc6+ $11) 28. Qd5+ Kf8 29. Qf3+ Ke7 30. Qxb7+ Ke6 31. Qc6+ Ke7 32. Qb7+ Kd6 33. Qb6+ Kd7 34. Qb7+ Kd6 35. Qb6+ Kd7 36. Qb7+ Kd6 $11) 25. Qg5+ {[%emt 0:01:19]} Bg6 {[%emt 0:00:09]} 26. Bf6 {[%emt 0:00:14] Prevents Rad8} c3 {[%emt 0:02:11]} 27. Qh6 {[%emt 0:00:23]} Qd2+ {[%emt 0:00:05] Black mates.} 28. Kf1 {[%emt 0:00:05]} Qd1+ {[%emt 0:00:08]} 29. Kg2 {[%emt 0:00:07]} Qg4+ {[%emt 0:00:07] Weighted Error Value: White=1.43/Black=0.17 (very precise)   Mistake:       	White=7     	Black=2      Inaccurate:     	White=1     	Black=1      OK:         	White=2     	Black=7      Best:        	White=3     	---} (29... Be4+ $142 30. Kh2 Qh1+ 31. Kg3 Qf3+ 32. Kh2 Qg2#) 0-1

[Event "4NCL Div 1 2024-25"]
[Site "England"]
[Date "2025.01.26"]
[Round "4.22"]
[White "Kirk, Ezra"]
[Black "Onslow, Alfie"]
[Result "1/2-1/2"]
[Annotator "TA"]
[ECO "B12"]
[WhiteElo "2386"]
[BlackElo "2170"]
[PlyCount "121"]
[EventDate "2024.11.23"]
[EventType "team-tourn"]
[EventCountry "ENG"]
[SourceTitle "playchess.com"]
[Source "ChessBase"]
[SourceQuality "1"]
[TimeControl "40/6000+30:3000+30"]

{[%evp 9,121,8,19,12,16,14,9,14,21,19,10,20,16,23,30,25,13,18,18,7,21,0,-3,0,32,-5,-6,-4,-9,-9,-3,-30,-20,-15,14,-2,0,0,0,0,0,-19,-21,-52,-25,-102,-95,-102,-20,-119,-120,-489,-476,-962,-15,-16,0,-25,-25,-34,-27,-33,-39,-72,-75,-80,-64,-78,-67,-69,-64,-68,-62,-65,-67,-68,-8,-79,-23,-27,-27,-27,-27,-81,-8,-8,0,0,0,-8,-8,-8,0,-8,-8,-8,-8,-8,-8,-8,-8,-8,-8,-8,-8,-8,-8,-8,-8,-8,-8,-8,-8,-8]} 1. e4 {[%emt 0:10:04]} c6 {[%emt 0:10:19]} 2. d4 {[%emt 0:00:07]} d5 {[%emt 0:00:06]} 3. e5 {[%emt 0:00:22]} c5 {[%emt 0:00:20]} 4. Nf3 {[%emt 0:00:38]} cxd4 {[%emt 0:01:20]} 5. Nxd4 {[%emt 0:01:03]} Nc6 {[%emt 0:01:53]} 6. c4 {[%emt 0:01:26] B12: Caro-Kann: Advance Variation.} e6 {[%emt 0:00:36]} 7. Nc3 {[%emt 0:03:10] next cxd5 is good for White.} Bc5 {[%emt 0:01:05] seems to push 7...Bb4 aside.} 8. Nxc6 {[%emt 0:00:55]} bxc6 {[%emt 0:00:05]} 9. cxd5 {[%emt 0:01:09]} exd5 {[%emt 0:00:57]} 10. Bd3 {[%emt 0:02:55]} Ne7 {[%emt 0:01:17]} 11. O-O {[%emt 0:05:03]} Bf5 {[%emt 0:03:45]} 12. Bg5 {[%emt 0:04:40] [#] Black must now prevent Bxf5.} Bxd3 {[%emt 0:27:24]} 13. Qxd3 {[%emt 0:00:29] A sharp opening} O-O {[%emt 0:01:09]} 14. Na4 {[%emt 0:11:05]} Bb6 {[%emt 0:01:12]} 15. Qa3 {[%emt 0:00:09]} Re8 {[%emt 0:00:48]} 16. Rac1 {[%emt 0:00:24]} Rc8 {[%emt 0:00:50]} 17. Rfe1 $146 {[%emt 0:07:09]} (17. Nxb6 axb6 18. Qd6 Qc7 19. Bxe7 Qxe7 20. Rxc6 Rxc6 21. Qxc6 Qxe5 22. Qxb6 Rb8 23. Qc5 Qxb2 24. Qxd5 {½-½ Jones,G (2562)-Wang,P (2383) Sydney op-A Parramatta 2008 (4)}) 17... h6 {[%emt 0:02:11]} 18. Bh4 {[%emt 0:04:27]} Qd7 {[%emt 0:12:17]} 19. Qd6 {[%emt 0:12:14]} Qe6 {[%emt 0:00:53]} 20. Bxe7 {[%emt 0:11:17]} (20. Qxe6 fxe6 21. Nc5 Nf5 22. Bg3) 20... Rxe7 {[%emt 0:01:51]} 21. Qb4 {[%emt 0:00:32]} (21. Qxe6 {simplifies} fxe6 22. Nc5 Kf7 23. g3) 21... Rb8 {[%emt 0:10:24][%cal Ob6f2] [#]} 22. Qd2 {[%emt 0:12:30]} Rc8 {[%emt 0:11:31]} 23. b4 {[%emt 0:03:42]} Qf5 {[%emt 0:00:12]} 24. Nxb6 {[%emt 0:01:39]} axb6 {[%emt 0:00:09]} 25. f4 {[%emt 0:02:16]} Ra7 {[%emt 0:07:19]} 26. Re2 {[%emt 0:09:00]} Ra3 {[%emt 0:01:10]} 27. Rd1 {[%emt 0:01:53]} (27. Qd4 $11) 27... Rca8 $17 {[%emt 0:01:46]} 28. Qc2 {[%emt 0:02:36]} Qg4 {[%emt 0:05:46]} (28... Qxf4 $17 {aiming for ...Rxa2.} 29. Qxc6 Rxa2 (29... Qxb4 30. e6 $11) 30. Rxa2 Rxa2 31. Qxd5 Qe3+ 32. Kh1 Rb2) 29. h3 {[%emt 0:00:47]} (29. Red2 $1 $11) 29... Rxh3 {[%emt 0:00:49]} 30. e6 $2 {[%emt 0:01:07][%mdl 8192]} (30. Rde1 $17 {is tougher.}) 30... fxe6 $19 {[%emt 0:00:58]} 31. Rde1 {[%emt 0:00:03]} (31. Rd3 $142 Rxa2 32. Qxa2 Rxd3 33. Re1) 31... Rha3 $2 {[%emt 0:03:36]} (31... Qg3 $19 {( -> ...Qh2+)} 32. Rf1 Qh2+ 33. Kf2 Qg3+ (33... Qxf4+ $2 34. Ke1 $19) 34. Kg1) 32. Qxc6 $11 {[%emt 0:00:58]} Rxa2 {[%emt 0:00:12]} (32... Qxf4 {with more complications.} 33. Qxe6+ Kh7 34. Qxd5 Rf8) 33. Qxe6+ {[%emt 0:00:09]} Qxe6 {[%emt 0:00:04]} 34. Rxe6 {[%emt 0:00:04][%mdl 4096] Endgame KRR-KRR. Black is a pawn up.} Rf8 {[%emt 0:02:15]} 35. Rf1 {[%emt 0:00:55]} Rf6 {[%emt 0:00:17]} 36. Re8+ {[%emt 0:00:53]} Kf7 {[%emt 0:00:32]} 37. Rd8 {[%emt 0:00:10]} Rb2 {[%emt 0:00:11]} 38. Rxd5 {[%emt 0:00:30]} Rxb4 {[%emt 0:00:05]} 39. Rd7+ {[%emt 0:00:35]} Kg6 {[%emt 0:01:13]} 40. g3 {[%emt 0:00:17]} Rb2 {[%emt 0:01:06]} 41. Rf2 {[%emt 0:21:46]} Rb3 {[%emt 0:20:43]} 42. Kg2 {[%emt 0:02:19]} h5 {[%emt 0:08:12]} (42... Rc6 $15) 43. Kh3 {[%emt 0:07:39]} (43. Rf3 $11 Rxf3 44. Kxf3) 43... Rc6 {[%emt 0:02:18]} (43... b5 $17) 44. Rd5 {[%emt 0:00:07]} Kh6 {[%emt 0:05:41]} 45. Kh4 {[%emt 0:07:09]} g6 {[%emt 0:01:00]} 46. Kh3 {[%emt 0:00:07]} (46. Rfd2 $11 {remains equal.}) 46... Rbc3 {[%emt 0:04:03]} ({Black should play} 46... Rcc3 $17 47. Rg5 Rb4) 47. Re2 {[%emt 0:01:37] The position is equal.} R3c5 {[%emt 0:05:03]} 48. Rd7 {[%emt 0:04:31]} Rc7 {[%emt 0:00:24]} 49. Ree7 {[%emt 0:00:42][%csl Gd7][%cal Re7h7]} Rxd7 {[%emt 0:00:28]} 50. Rxd7 {[%emt 0:00:07] KR-KR. Black is a pawn up.} b5 {[%emt 0:00:51]} 51. Rb7 {[%emt 0:00:41]} g5 {[%emt 0:00:39] ...gxf4 is in the air} 52. Rb6+ {[%emt 0:00:12]} Kg7 {[%emt 0:00:09]} 53. fxg5 {[%emt 0:00:32]} Rxg5 {[%emt 0:00:03]} 54. Kh4 {[%emt 0:00:26]} Rc5 {[%emt 0:02:25]} 55. g4 {[%emt 0:00:19]} hxg4 {[%emt 0:00:17]} 56. Kxg4 {[%emt 0:00:05]} Kf7 {[%emt 0:00:06]} 57. Kf4 {[%emt 0:00:11]} Ke7 {[%emt 0:00:03]} 58. Ke4 {[%emt 0:00:07]} Kd7 {[%emt 0:00:08]} 59. Kd4 {[%emt 0:00:09]} Rh5 {[%emt 0:00:07]} 60. Kc3 {[%emt 0:00:44]} Kc7 {[%emt 0:00:04]} 61. Rg6 {[%emt 0:00:18] Weighted Error Value: White=0.34/Black=0.22 (precise)   Loses game:     	White=1     	---        Missed win:     	---       	Black=1      Mistake:       	White=5     	Black=4      Inaccurate:     	White=4     	Black=3      OK:         	White=25    	Black=25     Best:        	White=2     	Black=4} 1/2-1/2